fUST/lending_fUST_20251121
["ID","MTS","AMOUNT","RATE_DAILY","PERIOD"]
[394526823,1763667041907,-500.0,5e-05,2]
[394526824,1763667041917,-500.0,5e-05,2]
[394526825,1763667041927,-550.0,5e-05,2]
[394526826,1763667041937,-500.0,5e-05,2]
[394526827,1763667041946,-500.0,5e-05,2]
[394526828,1763667041956,-500.0,5e-05,2]
[394526829,1763667041966,-500.0,5e-05,2]
[394526830,1763667041976,-366.71049199,5.274e-05,2]
[394526831,1763667041986,-1000.0,5.381e-05,2]
[394526832,1763667041996,-747.87291088,5.381e-05,2]
[394526833,1763667042007,-1000.0,5.381e-05,2]
[394526834,1763667042018,-720.0,5.443e-05,2]
[394526835,1763667042029,-500.0,5.479e-05,2]
[394526836,1763667042038,-490.43288997,5.479e-05,2]
[394526837,1763667042048,-500.0,5.479e-05,2]
[394526838,1763667042057,-156.01696658,5.479e-05,2]
[394526839,1763667042067,-160.81609712,5.479e-05,2]
[394526840,1763667042078,-500.0,5.479e-05,2]
[394526841,1763667042088,-500.0,5.479e-05,2]
[394526842,1763667042098,-500.0,5.479e-05,2]
[394526843,1763667042107,-500.0,5.479e-05,2]
[394526844,1763667042203,-500.0,5.479e-05,2]
[394526845,1763667042214,-650.0,5.479e-05,2]
[394526846,1763667042224,-11684.4709942,5.893e-05,2]
[394526847,1763667042234,-864.0,5.987e-05,2]
[394526848,1763667042244,-2607.1578842,6.125e-05,2]
[394526849,1763667042254,-1000.0,6.586e-05,2]
[394526850,1763667042263,-177.0,6.704e-05,2]
[394526851,1763667042274,-721.94381567,6.778e-05,2]
[394526852,1763667042284,-179.0,7.244e-05,2]
[394526853,1763667042293,-612.8694691,8.219e-05,2]
[394526854,1763667042303,-204.0,8.704e-05,2]
[394526855,1763667042313,-297.5921301,8.771e-05,2]
[394526856,1763667042324,-854.52299955,9.154e-05,2]
[394526857,1763667042335,-168.40064154,9.169e-05,2]
[394526858,1763667042345,-989.14170805,9.224e-05,2]
[394526859,1763667042354,-406.89495346,9.392e-05,2]
[394526860,1763667042368,-402.1206496,9.741e-05,2]
[394526861,1763667042377,-590.65588452,9.814e-05,2]
[394526862,1763667042386,-539.61405848,9.919e-05,2]
[394526863,1763667042396,-252.12191882,0.0001,2]
[394526864,1763667042407,-1545.53391883,0.00010107,2]
[394526865,1763667042417,-2150.88039607,0.00010225,2]
[394526866,1763667042426,-209.55591214,0.00010255,2]
[394526867,1763667042435,-1519.1519992,0.00010448,2]
[394526868,1763667042446,-1063.18059213,0.00010501,2]
[394526869,1763667042455,-723.81716929,0.00010632,2]
[394526870,1763667042465,-723.36880615,0.00010633,2]
[394526871,1763667042477,-231.0,0.00010704,2]
[394526872,1763667042486,-999.0,0.00010959,2]
[394526873,1763667042496,-500.0,0.00010959,2]
[394526874,1763667042505,-500.0,0.00010959,2]
[394526875,1763667042514,-500.0,0.00010959,2]
[394526876,1763667042523,-500.0,0.00010959,2]
[394526877,1763667042532,-421.5072694,0.00010959,2]
[394526878,1763667042542,-335.4057608,0.00010959,2]
[394526879,1763667042551,-500.0,0.00010959,2]
[394526880,1763667042560,-500.0,0.00010959,2]
[394526881,1763667042570,-242.3983748,0.00010959,2]
[394526882,1763667042581,-500.0,0.00010959,2]
[394526883,1763667042590,-500.0,0.00010959,2]
[394526884,1763667042601,-524.18142418,0.00010959,2]
[394526885,1763667042610,-240.0,0.00010959,2]
[394526886,1763667042620,-500.0,0.00010959,2]
[394526887,1763667042629,-153.30331495,0.00010959,2]
[394526888,1763667042639,-1890.09883046,0.0001119,2]
[394526889,1763667042648,-377.20064185,0.00011318,2]
[394526890,1763667042658,-1286.78607873,0.00011523,2]
[394526891,1763667042667,-4834.64141026,0.0001168,2]
[394526892,1763667042676,-1189.17815187,0.0001168,2]
[394526894,1763667042686,-268.08564692,0.0001179,2]
[394526896,1763667042695,-2953.27942259,0.00011879,2]
[394526897,1763667042704,-151.0,0.000123,2]
[394526898,1763667042713,-303.12115478,0.00012361,2]
[394526899,1763667042723,-670.57891884,0.0001238,2]
[394526900,1763667042732,-258.0,0.00012704,2]
[394526901,1763667042741,-151.0,0.000128,2]
[394526902,1763667042750,-1071.27024509,0.00012879,2]
[394526903,1763667042760,-2404.47112632,0.000129,2]
[394526905,1763667042770,-2404.47112629,0.000129,2]
[394526908,1763667042779,-320.01643496,0.00013064,2]
[394526913,1763667042789,-151.0,0.000132,2]
[394526917,1763667042798,-160.0,0.00013488,2]
[394526920,1763667042808,-160.0,0.00013489,2]
[394526922,1763667042817,-824.371,0.0001366,2]
[394526924,1763667042829,-500.0,0.00013698,2]
[394526925,1763667042838,-359.64219438,0.00013698,2]
[394526926,1763667042848,-500.0,0.00013698,2]
[394526928,1763667042857,-500.0,0.00013698,2]
[394526930,1763667042867,-500.0,0.00013698,2]
[394526931,1763667042876,-500.0,0.00013698,2]
[394526932,1763667042884,-403.50249142,0.00013698,2]
[394526933,1763667042894,-223.156846,0.00013698,2]
[394526934,1763667042903,-500.0,0.00013698,2]
[394526935,1763667042913,-279.58756699,0.00013698,2]
[394526936,1763667042923,-500.0,0.00013698,2]
[394526937,1763667042933,-500.0,0.00013698,2]
[394526938,1763667042943,-500.0,0.00013698,2]
[394526939,1763667042953,-500.0,0.00013698,2]
[394526940,1763667042962,-500.0,0.00013698,2]
[394526941,1763667042974,-500.0,0.00013698,2]
[394526942,1763667042983,-500.0,0.00013698,2]
[394526943,1763667042993,-500.0,0.00013698,2]
[394526944,1763667043002,-500.0,0.00013698,2]
[394526945,1763667043011,-500.0,0.00013698,2]
[394526946,1763667043021,-500.0,0.00013698,2]
[394526947,1763667043030,-500.0,0.00013698,2]
[394526948,1763667043040,-500.0,0.00013698,2]
[394526949,1763667043049,-500.0,0.00013698,2]
[394526950,1763667043059,-500.0,0.00013698,2]
[394526951,1763667043068,-500.0,0.00013698,2]
[394526952,1763667043078,-500.0,0.00013698,2]
[394526953,1763667043087,-380.121924,0.00013698,2]
[394526954,1763667043097,-1000.0,0.00013698,2]
[394526955,1763667043106,-1000.0,0.00013698,2]
[394526956,1763667043116,-1000.0,0.00013698,2]
[394526957,1763667043125,-1000.0,0.00013698,2]
[394526958,1763667043134,-1000.0,0.00013698,2]
[394526959,1763667043143,-1000.0,0.00013698,2]
[394526960,1763667043164,-1000.0,0.00013698,2]
[394526961,1763667043175,-1000.0,0.00013698,2]
[394526962,1763667043185,-1000.0,0.00013698,2]
[394526963,1763667043195,-1000.0,0.00013698,2]
[394526964,1763667043204,-1000.0,0.00013698,2]
[394526965,1763667043214,-1000.0,0.00013698,2]
[394526966,1763667043225,-1000.0,0.00013698,2]
[394526967,1763667043234,-234.78778676,0.00013698,2]
[394526968,1763667043244,-673.1,0.00013698,2]
[394526969,1763667043254,-673.1,0.00013698,2]
[394526970,1763667043264,-673.1,0.00013698,2]
[394526971,1763667043273,-673.1,0.00013698,2]
[394526972,1763667043283,-673.1,0.00013698,2]
[394526973,1763667043293,-673.1,0.00013698,2]
[394526974,1763667043303,-673.1,0.00013698,2]
[394526975,1763667043313,-673.1,0.00013698,2]
[394526976,1763667043323,-673.1,0.00013698,2]
[394526977,1763667043333,-673.1,0.00013698,2]
[394526978,1763667043343,-673.1,0.00013698,2]
[394526980,1763667043353,-673.1,0.00013698,2]
[394526982,1763667043364,-673.1,0.00013698,2]
[394526984,1763667043376,-673.1,0.00013698,2]
[394526986,1763667043385,-673.1,0.00013698,2]
[394526987,1763667043395,-673.1,0.00013698,2]
[394526988,1763667043406,-673.1,0.00013698,2]
[394526990,1763667043415,-673.1,0.00013698,2]
[394526991,1763667043426,-673.1,0.00013698,2]
[394526992,1763667043435,-673.1,0.00013698,2]
[394526993,1763667043447,-673.1,0.00013698,2]
[394526994,1763667043456,-673.1,0.00013698,2]
[394526996,1763667043466,-673.1,0.00013698,2]
[394526998,1763667043476,-673.25,0.00013698,2]
[394527000,1763667043485,-492.7584278,0.00013699,2]
[394527003,1763667043495,-663.823011,0.00013699,2]
[394527004,1763667043505,-151.0,0.00013699,2]
[394527005,1763667043514,-151.0,0.00013699,2]
[394527006,1763667043524,-151.0,0.00013699,2]
[394527007,1763667043533,-151.0,0.00013699,2]
[394527008,1763667043543,-151.0,0.00013699,2]
[394527009,1763667043552,-175.286668,0.00013699,2]
[394527010,1763667043561,-151.0,0.00013699,2]
[394527011,1763667043571,-151.0,0.00013699,2]
[394527012,1763667043581,-151.0,0.00013699,2]
[394527013,1763667043591,-151.0,0.00013699,2]
[394527014,1763667043600,-151.0,0.00013699,2]
[394527015,1763667043609,-151.0,0.00013699,2]
[394527016,1763667043619,-626.70170652,0.00013699,2]
[394527017,1763667043629,-500.0,0.00013699,2]
[394527018,1763667043640,-500.0,0.00013699,2]
[394527019,1763667043650,-500.0,0.00013699,2]
[394527020,1763667043660,-500.0,0.00013699,2]
[394527021,1763667043671,-500.0,0.00013699,2]
[394527022,1763667043681,-501.70973606,0.00013699,2]
[394527023,1763667043691,-501.89109219,0.00013699,2]
[394527024,1763667043700,-500.0,0.00013699,2]
[394527025,1763667043710,-500.0,0.00013699,2]
[394527026,1763667043720,-500.0,0.00013699,2]
[394527027,1763667043730,-298.72556421,0.00013699,2]
[394527028,1763667043739,-500.0,0.00013699,2]
[394527029,1763667043749,-500.0,0.00013699,2]
[394527030,1763667043759,-517.78655843,0.00013699,2]
[394527031,1763667043770,-500.0,0.00013699,2]
[394527032,1763667043781,-500.34796735,0.00013699,2]
[394527033,1763667043791,-500.0,0.00013699,2]
[394527034,1763667043800,-310.08589097,0.00013699,2]
[394527035,1763667043811,-505.46721626,0.00013699,2]
[394527036,1763667043821,-500.0,0.00013699,2]
[394527037,1763667043831,-500.0,0.00013699,2]
[394527038,1763667043840,-500.52468407,0.00013699,2]
[394527039,1763667043850,-500.0,0.00013699,2]
[394527040,1763667043860,-502.65793107,0.00013699,2]
[394527041,1763667043869,-500.0,0.00013699,2]
[394527042,1763667043878,-500.0,0.00013699,2]
[394527043,1763667043888,-502.55627882,0.00013699,2]
[394527044,1763667043897,-500.0,0.00013699,2]
[394527045,1763667043907,-502.4027528,0.00013699,2]
[394527046,1763667043917,-500.0,0.00013699,2]
[394527047,1763667043926,-500.0,0.00013699,2]
[394527048,1763667043936,-500.0,0.00013699,2]
[394527049,1763667043946,-500.0,0.00013699,2]
[394527050,1763667043955,-511.60236064,0.00013699,2]
[394527051,1763667043964,-500.5865276,0.00013699,2]
[394527052,1763667043973,-500.0,0.00013699,2]
[394527053,1763667043983,-501.21845382,0.00013699,2]
[394527054,1763667043992,-1250.54537382,0.00013699,7]
[394527055,1763667044001,-500.0,0.00013699,2]
[394527056,1763667044011,-503.42514393,0.00013699,2]
[394527057,1763667044020,-604.94498007,0.00013699,2]
[394527058,1763667044029,-151.0,0.000137,2]
[394527059,1763667044040,-212.88075839,0.00013752,2]
[394527060,1763667044049,-1059.1337704,0.00013783,2]
[394527061,1763667044059,-151.0,0.000141,2]
[394527062,1763667044068,-602.19213915,0.00014247,2]
[394527063,1763667044079,-320.56383698,0.00014247,2]
[394527064,1763667044089,-1000.0,0.00014247,2]
[394527065,1763667044099,-511.56600794,0.00014247,2]
[394527066,1763667044108,-1000.0,0.00014247,2]
[394527067,1763667044118,-501.81336112,0.00014247,2]
[394527068,1763667044129,-1000.0,0.00014247,2]
[394527069,1763667044141,-949.97112193,0.00014247,2]
[394527070,1763667044149,-1000.0,0.00014247,2]
[394527071,1763667044159,-500.0,0.00014247,2]
[394527072,1763667044168,-510.52016342,0.00014247,2]
[394527073,1763667044178,-1000.0,0.00014247,2]
[394527074,1763667044187,-508.41088558,0.00014247,2]
[394527075,1763667044196,-1001.80063985,0.00014247,2]
[394527076,1763667044210,-246.64609323,0.00014247,2]
[394527077,1763667044219,-1278.78567409,0.00014271,2]
[394527078,1763667044229,-316.752,0.00014439,2]
[394527079,1763667044239,-1208.07856439,0.00014459,2]
[394527080,1763667044248,-13297.1219946,0.00014521,2]
[394527081,1763667044258,-151.0,0.000146,2]
[394527082,1763667044267,-285.0,0.00014704,2]
[394527083,1763667044276,-752.39534222,0.00014795,2]
[394527084,1763667044286,-1500.0,0.00014795,2]
[394527085,1763667044297,-331.14823548,0.00014795,2]
[394527086,1763667044307,-573.58004219,0.00014795,2]
[394527087,1763667044316,-1500.0,0.00014795,2]
[394527088,1763667044326,-151.0,0.00015,2]
[394527089,1763667044335,-637.62832707,0.00015022,2]
[394527090,1763667044345,-850.67151052,0.00015022,2]
[394527091,1763667044354,-218.628236,0.00015068,2]
[394527092,1763667044368,-227.07989625,0.00015266,7]
[394527093,1763667044378,-1504.56900422,0.00015342,2]
[394527094,1763667044388,-2000.0,0.00015342,2]
[394527095,1763667044400,-190.46769985,0.00015465,2]
[394527096,1763667044411,-100000.0,0.00015466,2]
[394527097,1763667044420,-151.0,0.00015466,2]
[394527098,1763667044430,-151.0,0.00015466,2]
[394527099,1763667044443,-151.0,0.00015466,2]
[394527100,1763667044456,-151.0,0.00015466,2]
[394527101,1763667044569,-271.51452,0.00015466,2]
[394527102,1763667044580,-500.0,0.00015473,2]
[394527103,1763667044591,-611.50256279,0.00015739,7]
[394527104,1763667044601,-1000.0,0.00015884,2]
[394527105,1763667044610,-2500.0,0.0001589,2]
[394527106,1763667044622,-1312.34252005,0.00016295,2]
[394527107,1763667044631,-849.0590804,0.00016438,2]
[394527108,1763667044641,-849.0590804,0.00016438,2]
[394527109,1763667044650,-849.0590804,0.00016438,2]
[394527110,1763667044659,-400.24647899,0.00016438,2]
[394527111,1763667044801,-3e-08,0.00016438,2]
[394527112,1763667044813,-448.81260138,0.00016438,2]
[394527113,1763667044823,-849.0590804,0.00016438,2]
[394527114,1763667044832,-849.0590804,0.00016438,2]
[394527115,1763667044842,-849.0590804,0.00016438,2]
[394527116,1763667044851,-849.0590804,0.00016438,2]
[394527117,1763667044860,-370.1911362,0.00016438,2]
[394527118,1763667044871,-478.8679442,0.00016438,2]
[394527119,1763667044880,-849.0590804,0.00016438,2]
[394527120,1763667044889,-849.0590804,0.00016438,2]
[394527121,1763667044898,-849.0590804,0.00016438,2]
[394527122,1763667044907,-849.0590804,0.00016438,2]
[394527123,1763667044917,-849.0590804,0.00016438,2]
[394527124,1763667044927,-849.0590804,0.00016438,2]
[394527125,1763667044936,-849.0590804,0.00016438,2]
[394527126,1763667044945,-849.0590804,0.00016438,2]
[394527127,1763667044954,-849.0590804,0.00016438,2]
[394527128,1763667044963,-849.0590804,0.00016438,2]
[394527129,1763667044971,-849.0590804,0.00016438,2]
[394527130,1763667044980,-849.0590804,0.00016438,2]
[394527131,1763667044989,-849.0590804,0.00016438,2]
[394527132,1763667044998,-849.0590804,0.00016438,2]
[394527133,1763667045007,-849.0590804,0.00016438,2]
[394527134,1763667045016,-849.0590804,0.00016438,2]
[394527135,1763667045026,-849.0590804,0.00016438,2]
[394527136,1763667045035,-849.0590804,0.00016438,2]
[394527138,1763667045044,-849.0590804,0.00016438,2]
[394527140,1763667045053,-849.0590804,0.00016438,2]
[394527142,1763667045062,-849.0590804,0.00016438,2]
[394527143,1763667045072,-849.0590804,0.00016438,2]
[394527144,1763667045081,-849.0590804,0.00016438,2]
[394527145,1763667045090,-849.0590804,0.00016438,2]
[394527146,1763667045100,-849.0590804,0.00016438,2]
[394527147,1763667045109,-849.0590804,0.00016438,2]
[394527148,1763667045119,-849.0590804,0.00016438,2]
[394527149,1763667045128,-849.0590804,0.00016438,2]
[394527150,1763667045137,-849.0590804,0.00016438,2]
[394527151,1763667045147,-849.0590804,0.00016438,2]
[394527152,1763667045156,-849.0590804,0.00016438,2]
[394527153,1763667045167,-849.0590804,0.00016438,2]
[394527154,1763667045176,-849.0590804,0.00016438,2]
[394527155,1763667045186,-849.0590804,0.00016438,2]
[394527156,1763667045195,-233.78105773,0.00016438,2]
[394527157,1763667045263,-212.77563453,0.00016438,2]
[394527158,1763667045275,-402.50238814,0.00016438,2]
[394527159,1763667045284,-849.0590804,0.00016438,2]
[394527160,1763667045294,-22.39961966,0.00016438,2]
[394527161,1763667045305,-826.65946074,0.00016438,2]
[394527162,1763667045314,-849.0590804,0.00016438,2]
[394527163,1763667045324,-849.0590804,0.00016438,2]
[394527164,1763667045335,-849.0590804,0.00016438,2]
[394527165,1763667045344,-849.0590804,0.00016438,2]
[394527166,1763667045354,-849.0590804,0.00016438,2]
[394527167,1763667045367,-849.0590804,0.00016438,2]
[394527168,1763667045377,-849.0590804,0.00016438,2]
[394527169,1763667045386,-849.0590804,0.00016438,2]
[394527170,1763667045395,-849.0590804,0.00016438,2]
[394527171,1763667045405,-849.0590804,0.00016438,2]
[394527172,1763667045414,-849.0590804,0.00016438,2]
[394527173,1763667045424,-849.0590804,0.00016438,2]
[394527174,1763667045433,-849.0590804,0.00016438,2]
[394527175,1763667045444,-849.0590804,0.00016438,2]
[394527176,1763667045453,-849.0590804,0.00016438,2]
[394527177,1763667045463,-849.0590804,0.00016438,2]
[394527178,1763667045472,-783.00688963,0.00016438,2]
[394527179,1763667045483,-783.00688963,0.00016438,2]
[394527180,1763667045493,-783.00688963,0.00016438,2]
[394527181,1763667045505,-783.00688963,0.00016438,2]
[394527182,1763667045524,-783.00688963,0.00016438,2]
[394527183,1763667045535,-783.00688963,0.00016438,2]
[394527184,1763667045545,-783.00688963,0.00016438,2]
[394527185,1763667045554,-783.00688963,0.00016438,2]
[394527186,1763667045564,-783.00688963,0.00016438,2]
[394527187,1763667045573,-783.00688963,0.00016438,2]
[394527188,1763667045585,-783.00688963,0.00016438,2]
[394527189,1763667045595,-783.00688963,0.00016438,2]
[394527190,1763667045604,-783.00688963,0.00016438,2]
[394527191,1763667045614,-783.00688963,0.00016438,2]
[394527192,1763667045623,-783.00688963,0.00016438,2]
[394527193,1763667045632,-783.00688963,0.00016438,2]
[394527194,1763667045642,-783.00688963,0.00016438,2]
[394527195,1763667045653,-783.00688963,0.00016438,2]
[394527196,1763667045662,-783.00688963,0.00016438,2]
[394527197,1763667045672,-783.00688963,0.00016438,2]
[394527198,1763667045682,-783.00688963,0.00016438,2]
[394527199,1763667045691,-783.00688963,0.00016438,2]
[394527200,1763667045700,-783.00688963,0.00016438,2]
[394527201,1763667045711,-729.23679137,0.00016438,2]
[394527202,1763667045724,-53.77009826,0.00016438,2]
[394527203,1763667045734,-783.00688963,0.00016438,2]
[394527204,1763667045744,-783.00688963,0.00016438,2]
[394527206,1763667045753,-783.00688963,0.00016438,2]
[394527208,1763667045763,-783.00688963,0.00016438,2]
[394527210,1763667045772,-783.00688963,0.00016438,2]
[394527211,1763667045782,-783.00688963,0.00016438,2]
[394527212,1763667045791,-783.00688963,0.00016438,2]
[394527213,1763667045801,-783.00688963,0.00016438,2]
[394527215,1763667045811,-783.00688963,0.00016438,2]
[394527217,1763667045820,-783.00688963,0.00016438,2]
[394527219,1763667045831,-783.00688963,0.00016438,2]
[394527221,1763667045841,-692.23775471,0.00016438,2]
[394527261,1763667046383,-90.76913492,0.00016438,2]
[394527263,1763667046393,-353.63897599,0.00016438,2]
[394527265,1763667046405,-429.36791364,0.00016438,2]
[394527267,1763667046415,-783.00688963,0.00016438,2]
[394527269,1763667046424,-783.00688963,0.00016438,2]
[394527270,1763667046434,-783.00688963,0.00016438,2]
[394527271,1763667046446,-500.0,0.00016438,2]
[394527272,1763667046458,-588.56761229,0.00016438,2]
[394527273,1763667046470,-783.00688963,0.00016438,2]
[394527274,1763667046481,-783.00688963,0.00016438,2]
[394527275,1763667046491,-783.00688963,0.00016438,2]
[394527276,1763667046501,-783.00688963,0.00016438,2]
[394527277,1763667046511,-783.00688963,0.00016438,2]
[394527278,1763667046521,-783.00688963,0.00016438,2]
[394527279,1763667046532,-783.00688963,0.00016438,2]
[394527280,1763667046542,-783.00688963,0.00016438,2]
[394527281,1763667046552,-783.00688963,0.00016438,2]
[394527282,1763667046563,-783.00688963,0.00016438,2]
[394527283,1763667046573,-783.00688963,0.00016438,2]
[394527284,1763667046584,-783.00688963,0.00016438,2]
[394527285,1763667046594,-783.00688963,0.00016438,2]
[394527286,1763667046605,-783.00688963,0.00016438,2]
[394527287,1763667046615,-31.74008227,0.00016438,2]
[394527288,1763667046628,-808.82840731,0.00016438,2]
[394527289,1763667046638,-840.56848958,0.00016438,2]
[394527290,1763667046650,-840.56848958,0.00016438,2]
[394527291,1763667046662,-840.56848958,0.00016438,2]
[394527292,1763667046673,-840.56848958,0.00016438,2]
[394527293,1763667046683,-155.4991305,0.00016438,2]
[394527294,1763667046696,-685.06935908,0.00016438,2]
[394527295,1763667046707,-840.56848958,0.00016438,2]
[394527296,1763667046718,-840.56848958,0.00016438,2]
[394527297,1763667046727,-840.56848958,0.00016438,2]
[394527298,1763667046739,-840.56848958,0.00016438,2]
[394527299,1763667046749,-840.56848958,0.00016438,2]
[394527300,1763667046759,-840.56848958,0.00016438,2]
[394527301,1763667046770,-840.56848958,0.00016438,2]
[394527302,1763667046781,-840.56848958,0.00016438,2]
[394527303,1763667046791,-840.56848958,0.00016438,2]
[394527304,1763667046800,-840.56848958,0.00016438,2]
[394527305,1763667046811,-840.56848958,0.00016438,2]
[394527306,1763667046821,-840.56848958,0.00016438,2]
[394527307,1763667046831,-840.56848958,0.00016438,2]
[394527308,1763667046841,-840.56848958,0.00016438,2]
[394527309,1763667046850,-840.56848958,0.00016438,2]
[394527310,1763667046861,-840.56848958,0.00016438,2]
[394527311,1763667046873,-840.56848958,0.00016438,2]
[394527312,1763667046882,-840.56848958,0.00016438,2]
[394527313,1763667046892,-840.56848958,0.00016438,2]
[394527314,1763667046901,-840.56848958,0.00016438,2]
[394527315,1763667046910,-840.56848958,0.00016438,2]
[394527316,1763667046920,-840.56848958,0.00016438,2]
[394527317,1763667046928,-765.1095893,0.00016438,2]
[394527318,1763667046937,-765.1095893,0.00016438,2]
[394527319,1763667046949,-765.1095893,0.00016438,2]
[394527320,1763667046958,-765.1095893,0.00016438,2]
[394527321,1763667046967,-765.1095893,0.00016438,2]
[394527322,1763667046977,-765.1095893,0.00016438,2]
[394527323,1763667046987,-765.1095893,0.00016438,2]
[394527324,1763667046997,-765.1095893,0.00016438,2]
[394527325,1763667047007,-765.1095893,0.00016438,2]
[394527326,1763667047016,-765.1095893,0.00016438,2]
[394527327,1763667047026,-765.1095893,0.00016438,2]
[394527328,1763667047037,-765.1095893,0.00016438,2]
[394527329,1763667047046,-765.1095893,0.00016438,2]
[394527330,1763667047056,-765.1095893,0.00016438,2]
[394527331,1763667047066,-765.1095893,0.00016438,2]
[394527332,1763667047076,-765.1095893,0.00016438,2]
[394527333,1763667047088,-765.1095893,0.00016438,2]
[394527334,1763667047099,-765.1095893,0.00016438,2]
[394527335,1763667047108,-765.1095893,0.00016438,2]
[394527336,1763667047119,-765.1095893,0.00016438,2]
[394527337,1763667047130,-765.1095893,0.00016438,2]
[394527338,1763667047246,-765.1095893,0.00016438,2]
[394527339,1763667047258,-765.1095893,0.00016438,2]
[394527340,1763667047267,-765.1095893,0.00016438,2]
[394527341,1763667047277,-765.1095893,0.00016438,2]
[394527342,1763667047287,-765.1095893,0.00016438,2]
[394527343,1763667047297,-765.1095893,0.00016438,2]
[394527344,1763667047307,-765.1095893,0.00016438,2]
[394527345,1763667047316,-765.1095893,0.00016438,2]
[394527346,1763667047326,-765.1095893,0.00016438,2]
[394527347,1763667047339,-765.1095893,0.00016438,2]
[394527348,1763667047348,-765.1095893,0.00016438,2]
[394527349,1763667047358,-765.1095893,0.00016438,2]
[394527350,1763667047371,-765.1095893,0.00016438,2]
[394527351,1763667047381,-840.56848961,0.00016438,2]
[394527352,1763667047391,-840.56848961,0.00016438,2]
[394527353,1763667047400,-765.10958924,0.00016438,2]
[394527354,1763667047410,-151.0,0.00016438,2]
[394527355,1763667047420,-151.0,0.00016438,2]
[394527356,1763667047431,-151.0,0.00016438,2]
[394527357,1763667047444,-151.0,0.00016438,2]
[394527358,1763667047455,-500.0,0.00016438,2]
[394527359,1763667047465,-1680.88537942,0.00016438,2]
[394527360,1763667047475,-721.94381567,0.00016456,2]
[394527361,1763667047484,-312.0,0.00016704,2]
[394527362,1763667047494,-2404.47112629,0.00017409,2]
[394527363,1763667047504,-907.4112654,0.00017434,7]
[394527364,1763667047513,-500.0,0.00017534,2]
[394527365,1763667047523,-2443.56424093,0.00017973,7]
[394527366,1763667047532,-591.09559405,0.0001834,7]
[394527367,1763667047541,-221.67071742,0.00018342,7]
[394527368,1763667047550,-218.628236,0.00018493,2]
[394527369,1763667047559,-500.0,0.0001863,2]
[394527370,1763667047568,-339.0,0.00018704,2]
[394527371,1763667047579,-333.0,0.00019043,2]
[394527372,1763667047587,-333.0,0.00019078,2]
[394527373,1763667047597,-150.0,0.00019178,2]
[394527374,1763667047607,-319.0,0.00019271,2]
[394527375,1763667047616,-319.0,0.00019278,2]
[394527376,1763667047625,-300.0,0.00019315,2]
[394527377,1763667047635,-333.0,0.00019386,2]
[394527378,1763667047645,-151.79765954,0.00019452,2]
[394527379,1763667047654,-333.0,0.00019467,2]
[394527380,1763667047664,-333.0,0.00019477,2]
[394527381,1763667047673,-333.0,0.00019506,2]
[394527382,1763667047683,-317.0,0.00019721,2]
[394527383,1763667047693,-304.45844156,0.00019726,2]
[394527384,1763667047702,-333.0,0.00019799,2]
[394527385,1763667047711,-317.0,0.00019953,2]
[394527386,1763667047720,-333.0,0.00019999,2]
[394527387,1763667047730,-273.56007506,0.0002,14]
[394527388,1763667047740,-333.0,0.00020061,2]
[394527389,1763667047750,-333.0,0.00020161,2]
[394527390,1763667047759,-663.823011,0.00020187,2]
[394527391,1763667047769,-333.0,0.00020194,2]
[394527392,1763667047778,-333.0,0.0002025,2]
[394527393,1763667047788,-319.0,0.00020298,2]
[394527394,1763667047797,-319.0,0.00020356,2]
[394527395,1763667047807,-333.0,0.0002056,2]
[394527396,1763667047816,-333.0,0.00020644,2]
[394527397,1763667047825,-366.0,0.00020704,2]
[394527398,1763667047837,-333.0,0.00020742,2]
[394527399,1763667047846,-318.0,0.0002081,2]
[394527400,1763667047855,-333.0,0.00020927,2]
[394527401,1763667047865,-333.0,0.00020991,2]
[394527402,1763667047875,-333.0,0.00021014,2]
[394527403,1763667047885,-223.156846,0.00021495,2]